fUSD/lending_fUSD_20240301
["ID","MTS","AMOUNT","RATE_DAILY","PERIOD"]
[315964947,1709305868750,-500.0,0.00022246,2]
[315964948,1709305868766,-502.86,0.00022246,2]
[315964949,1709305868775,-500.0,0.00022246,2]
[315964950,1709305868785,-500.0,0.00022246,2]
[315964951,1709305868796,-795.21,0.00022246,2]
[315964952,1709305868806,-500.0,0.00022246,2]
[315964953,1709305868816,-500.0,0.00022246,2]
[315964954,1709305868827,-500.0,0.00022246,2]
[315964955,1709305868838,-1168.03,0.00022246,2]
[315964956,1709305868848,-151.0,0.00022246,2]
[315964957,1709305868858,-500.0,0.00022246,2]
[315964958,1709305868868,-500.0,0.00022246,2]
[315964959,1709305868878,-500.0,0.00022246,2]
[315964960,1709305868888,-500.0,0.00022246,2]
[315964961,1709305868898,-500.0,0.00022246,2]
[315964962,1709305868908,-500.0,0.00022246,2]
[315964963,1709305868918,-544.82,0.00022246,2]
[315964964,1709305868928,-788.32,0.00022246,2]
[315964965,1709305868938,-500.0,0.00022246,2]
[315964966,1709305868948,-500.0,0.00022246,2]
[315964967,1709305868958,-500.0,0.00022246,2]
[315964968,1709305868969,-500.0,0.00022246,2]
[315964969,1709305868979,-500.0,0.00022246,2]
[315964970,1709305868989,-500.0,0.00022246,2]
[315964971,1709305868999,-500.0,0.00022246,2]
[315964972,1709305869015,-500.0,0.00022246,2]
[315964973,1709305869025,-500.0,0.00022246,2]
[315964974,1709305869034,-731.75,0.00022246,2]
[315964975,1709305869044,-500.0,0.00022246,2]
[315964976,1709305869054,-500.0,0.00022246,2]
[315964977,1709305869063,-500.0,0.00022246,2]
[315964978,1709305869073,-500.0,0.00022246,2]
[315964979,1709305869082,-500.0,0.00022246,2]
[315964980,1709305869092,-500.0,0.00022246,2]
[315964981,1709305869102,-500.0,0.00022246,2]
[315964982,1709305869111,-500.0,0.00022246,2]
[315964983,1709305869121,-500.0,0.00022246,2]
[315964984,1709305869130,-500.0,0.00022246,2]
[315964985,1709305869140,-500.0,0.00022246,2]
[315964986,1709305869150,-500.0,0.00022246,2]
[315964987,1709305869159,-989.93,0.00022246,2]
[315964988,1709305869168,-500.0,0.00022246,2]
[315964989,1709305869178,-500.0,0.00022246,2]
[315964990,1709305869186,-1062.73,0.00022246,2]
[315964991,1709305869196,-500.0,0.00022246,2]
[315964992,1709305869205,-500.0,0.00022246,2]
[315964993,1709305869214,-823.27,0.00022246,2]
[315964994,1709305869224,-500.0,0.00022246,2]
[315964995,1709305869233,-499.87373218,0.00022246,2]
[315964996,1709305869241,-500.0,0.00022246,2]
[315964997,1709305869253,-500.0,0.00022246,2]
[315964998,1709305869263,-547.21119425,0.00022246,2]
[315964999,1709305869271,-500.0,0.00022246,2]
[315965000,1709305869280,-500.0,0.00022246,2]
[315965001,1709305869289,-500.0,0.00022246,2]
[315965002,1709305869298,-500.0,0.00022246,2]
[315965003,1709305869308,-500.0,0.00022246,2]
[315965004,1709305869316,-500.0,0.00022246,2]
[315965005,1709305869325,-500.0,0.00022246,2]
[315965006,1709305869334,-500.0,0.00022246,2]
[315965007,1709305869345,-500.0,0.00022246,2]
[315965008,1709305869354,-500.0,0.00022246,2]
[315965009,1709305869363,-791.01,0.00022246,2]
[315965010,1709305869375,-500.0,0.00022246,2]
[315965011,1709305869383,-500.0,0.00022246,2]
[315965012,1709305869392,-1594.75,0.00022246,2]
[315965013,1709305869402,-500.0,0.00022246,2]
[315965014,1709305869411,-521.80540692,0.00022246,2]
[315965015,1709305869421,-500.0,0.00022246,2]
[315965016,1709305869430,-500.0,0.00022246,2]
[315965017,1709305869440,-500.0,0.00022246,2]
[315965018,1709305869452,-505.03,0.00022246,2]
[315965019,1709305869462,-500.0,0.00022246,2]
[315965020,1709305869472,-500.0,0.00022246,2]
[315965021,1709305869481,-747.13,0.00022246,2]
[315965022,1709305869490,-500.0,0.00022246,2]
[315965023,1709305869499,-534.78,0.00022246,2]
[315965024,1709305869510,-1220.65,0.00022246,2]
[315965025,1709305869520,-740.01,0.00022246,2]
[315965026,1709305869529,-1099.67,0.00022246,2]
[315965027,1709305869539,-500.0,0.00022246,2]
[315965028,1709305869549,-500.0,0.00022246,2]
[315965029,1709305869558,-500.0,0.00022246,2]
[315965030,1709305869567,-674.07,0.00022246,2]
[315965031,1709305869576,-5580.51,0.00022246,2]
[315965032,1709305869586,-446.87880769,0.00022246,2]
[315965033,1709305869595,-500.0,0.00022246,2]
[315965034,1709305869604,-5289.69,0.00022246,2]
[315965035,1709305869613,-4403.01,0.00022246,2]
[315965036,1709305869624,-681.13,0.00022246,2]
[315965037,1709305869633,-1257.15,0.00022246,2]
[315965038,1709305869642,-500.0,0.00022246,2]
[315965039,1709305869651,-500.0,0.00022246,2]
[315965040,1709305869661,-857.05,0.00022246,2]
[315965041,1709305869670,-590.84,0.00022246,2]
[315965042,1709305869679,-1083.41,0.00022246,2]
[315965043,1709305869688,-500.0,0.00022246,2]
[315965044,1709305869697,-500.0,0.00022246,2]
[315965045,1709305869706,-755.22,0.00022246,2]
[315965046,1709305869715,-500.0,0.00022246,2]
[315965047,1709305869725,-500.0,0.00022246,2]
[315965048,1709305869734,-500.0,0.00022246,2]
[315965049,1709305869743,-500.0,0.00022246,2]
[315965050,1709305869753,-1214.42,0.00022246,2]
[315965051,1709305869762,-500.0,0.00022246,2]
[315965052,1709305869772,-500.0,0.00022246,2]
[315965053,1709305869781,-3690.87,0.00022246,2]
[315965054,1709305869790,-500.0,0.00022246,2]
[315965055,1709305869799,-500.0,0.00022246,2]
[315965056,1709305869808,-3371.79,0.00022246,2]
[315965057,1709305869818,-1351.2,0.00022246,2]
[315965058,1709305869827,-803.59,0.00022246,2]
[315965059,1709305869836,-500.0,0.00022246,2]
[315965060,1709305869845,-646.81,0.00022246,2]
[315965061,1709305869855,-500.0,0.00022246,2]
[315965062,1709305869864,-500.0,0.00022246,2]
[315965063,1709305869874,-500.0,0.00022246,2]
[315965064,1709305869883,-726.61,0.00022246,2]
[315965065,1709305869892,-727.86,0.00022246,2]
[315965066,1709305869901,-500.0,0.00022246,2]
[315965067,1709305869910,-500.0,0.00022246,2]
[315965068,1709305869919,-2141.73,0.00022246,2]
[315965069,1709305869929,-559.99,0.00022246,2]
[315965070,1709305869938,-151.0,0.00022246,7]
[315965071,1709305869948,-500.0,0.00022246,2]
[315965072,1709305869958,-500.0,0.00022246,2]
[315965073,1709305869967,-1036.68,0.00022246,2]
[315965074,1709305869976,-2298.42,0.00022246,2]
[315965075,1709305869985,-334.18485964,0.00022246,2]
[315965076,1709305869994,-500.0,0.00022246,2]
[315965077,1709305870006,-1315.55,0.00022246,2]
[315965078,1709305870016,-895.66,0.00022246,2]
[315965079,1709305870025,-500.0,0.00022246,2]
[315965080,1709305870035,-500.0,0.00022246,2]
[315965081,1709305870044,-870.51,0.00022246,2]
[315965082,1709305870053,-151.0,0.00022246,7]
[315965083,1709305870062,-693.44,0.00022246,2]
[315965084,1709305870071,-500.0,0.00022246,2]
[315965085,1709305870080,-735.48,0.00022246,2]
[315965086,1709305870090,-500.0,0.00022246,2]
[315965087,1709305870099,-5334.59,0.00022246,2]
[315965088,1709305870108,-881.39,0.00022246,2]
[315965089,1709305870118,-1134.58,0.00022246,2]
[315965090,1709305870128,-1102.85,0.00022246,2]
[315965091,1709305870137,-500.0,0.00022246,2]
[315965092,1709305870147,-500.0,0.00022246,2]
[315965093,1709305870156,-772.72,0.00022246,2]
[315965094,1709305870166,-3217.72,0.00022246,2]
[315965095,1709305870175,-674.03,0.00022246,2]
[315965096,1709305870184,-151.0,0.00022246,7]
[315965097,1709305870194,-734.83,0.00022246,2]
[315965098,1709305870203,-514.39532442,0.00022246,2]
[315965099,1709305870212,-4071.64,0.00022246,2]
[315965100,1709305870222,-151.0,0.00022246,7]
[315965101,1709305870231,-500.0,0.00022246,2]
[315965102,1709305870240,-500.0,0.00022246,2]
[315965103,1709305870249,-500.0,0.00022246,2]
[315965104,1709305870260,-1336.48,0.00022246,2]
[315965105,1709305870270,-500.0,0.00022246,2]
[315965106,1709305870279,-2034.0,0.00022246,2]
[315965107,1709305870287,-6633.72,0.00022246,2]
[315965108,1709305870296,-500.0,0.00022246,2]
[315965109,1709305870305,-653.13,0.00022246,2]
[315965110,1709305870315,-500.0,0.00022246,2]
[315965111,1709305870324,-1007.25,0.00022246,2]
[315965112,1709305870333,-500.0,0.00022246,2]
[315965113,1709305870344,-1199.02,0.00022246,2]
[315965114,1709305870353,-1531.1,0.00022246,2]
[315965115,1709305870362,-500.0,0.00022246,2]
[315965116,1709305870372,-1053.76,0.00022246,2]
[315965117,1709305870382,-500.0,0.00022246,2]
[315965118,1709305870391,-7052.62,0.00022246,2]
[315965119,1709305870400,-880.94,0.00022246,2]
[315965120,1709305870409,-296.997032,0.00022246,7]
[315965121,1709305870420,-793.6,0.00022246,2]
[315965122,1709305870429,-4970.95,0.00022246,2]
[315965123,1709305870438,-500.0,0.00022246,2]
[315965124,1709305870449,-296.997032,0.00022246,7]
[315965125,1709305870458,-567.08,0.00022246,2]
[315965126,1709305870468,-500.0,0.00022246,2]
[315965127,1709305870477,-1404.44,0.00022246,2]
[315965128,1709305870486,-500.0,0.00022246,2]
[315965129,1709305870496,-1716.84,0.00022246,2]
[315965130,1709305870506,-1301.46,0.00022246,2]
[315965131,1709305870515,-632.56,0.00022246,2]
[315965132,1709305870525,-844.86,0.00022246,2]
[315965133,1709305870534,-1873.71,0.00022246,2]
[315965134,1709305870544,-500.0,0.00022246,2]
[315965135,1709305870553,-1094.87,0.00022246,2]
[315965136,1709305870562,-543.71,0.00022246,2]
[315965137,1709305870571,-1348.78,0.00022246,2]
[315965138,1709305870580,-1253.26,0.00022246,2]
[315965139,1709305870589,-517.7,0.00022246,2]
[315965140,1709305870598,-829.71,0.00022246,2]
[315965141,1709305870607,-1978.87,0.00022246,2]
[315965142,1709305870616,-500.0,0.00022246,2]
[315965143,1709305870626,-500.0,0.00022246,2]
[315965144,1709305870635,-5780.97,0.00022246,2]
[315965145,1709305870643,-500.0,0.00022246,2]
[315965146,1709305870653,-1128.32,0.00022246,2]
[315965147,1709305870661,-595.79,0.00022246,2]
[315965148,1709305870671,-900.35,0.00022246,2]
[315965149,1709305870680,-1360.34,0.00022246,2]
[315965150,1709305870689,-503.67,0.00022246,2]
[315965151,1709305870698,-500.0,0.00022246,2]
[315965152,1709305870707,-500.0,0.00022246,2]
[315965153,1709305870717,-543.27,0.00022246,2]
[315965154,1709305870726,-500.0,0.00022246,2]
[315965155,1709305870735,-151.0,0.00022246,7]
[315965156,1709305870744,-500.0,0.00022246,2]
[315965157,1709305870753,-655.83,0.00022246,2]
[315965158,1709305870762,-540.91,0.00022246,2]
[315965159,1709305870771,-500.0,0.00022246,2]
[315965160,1709305870781,-758.75,0.00022246,2]
[315965161,1709305870790,-1186.06,0.00022246,2]
[315965162,1709305870799,-471.92048673,0.00022246,2]
[315965163,1709305870808,-1195.58,0.00022246,2]
[315965164,1709305870817,-817.92,0.00022246,2]
[315965165,1709305870827,-1397.92,0.00022246,2]
[315965166,1709305870836,-947.48,0.00022246,2]
[315965167,1709305870845,-500.0,0.00022246,2]
[315965168,1709305870854,-889.25,0.00022246,2]
[315965169,1709305870864,-500.0,0.00022246,2]
[315965170,1709305870873,-558.86,0.00022246,2]
[315965171,1709305870883,-654.16,0.00022246,2]
[315965172,1709305870892,-508.24,0.00022246,2]
[315965173,1709305870901,-928.68,0.00022246,2]
[315965174,1709305871090,-886.02,0.00022246,2]
[315965175,1709305871099,-1331.87,0.00022246,2]
[315965176,1709305871109,-500.0,0.00022246,2]
[315965177,1709305871119,-500.0,0.00022246,2]
[315965178,1709305871128,-2216.85,0.00022246,2]
[315965179,1709305871138,-1288.14,0.00022246,2]
[315965180,1709305871147,-1254.88,0.00022246,2]
[315965181,1709305871157,-500.0,0.00022246,2]
[315965182,1709305871166,-782.75,0.00022246,2]
[315965183,1709305871175,-500.0,0.00022246,2]
[315965184,1709305871185,-641.49,0.00022246,2]
[315965185,1709305871194,-1350.32,0.00022246,2]
[315965186,1709305871203,-985.98,0.00022246,2]
[315965187,1709305871212,-1905.1,0.00022246,2]
[315965188,1709305871222,-504.56124982,0.00022246,2]
[315965189,1709305871231,-1197.98,0.00022246,2]
[315965190,1709305871241,-500.0,0.00022246,2]
[315965191,1709305871254,-500.0,0.00022246,2]
[315965192,1709305871263,-500.0,0.00022246,2]
[315965193,1709305871272,-1184.73,0.00022246,2]
[315965194,1709305871282,-500.0,0.00022246,2]
[315965195,1709305871291,-500.0,0.00022246,2]
[315965196,1709305871300,-934.94,0.00022246,2]
[315965197,1709305871310,-3329.36,0.00022246,2]
[315965198,1709305871318,-500.0,0.00022246,2]
[315965199,1709305871357,-1905.59,0.00022246,2]
[315965200,1709305871367,-500.0,0.00022246,2]
[315965201,1709305871377,-500.0,0.00022246,2]
[315965202,1709305871387,-500.0,0.00022246,2]
[315965203,1709305871396,-830.59,0.00022246,2]
[315965204,1709305871406,-555.78,0.00022246,2]
[315965205,1709305871415,-528.51,0.00022246,2]
[315965206,1709305871425,-1148.67,0.00022246,2]
[315965207,1709305871435,-1574.86,0.00022246,2]
[315965208,1709305871444,-924.56,0.00022246,2]
[315965209,1709305871455,-500.0,0.00022246,2]
[315965210,1709305871466,-765.51,0.00022246,2]
[315965211,1709305871475,-1684.51,0.00022246,2]
[315965212,1709305871485,-500.0,0.00022246,2]
[315965213,1709305871494,-604.09,0.00022246,2]
[315965214,1709305871503,-500.0,0.00022246,2]
[315965215,1709305871513,-878.61,0.00022246,2]
[315965216,1709305871522,-873.4,0.00022246,2]
[315965217,1709305871531,-847.29,0.00022246,2]
[315965218,1709305871541,-983.47,0.00022246,2]
[315965219,1709305871550,-500.0,0.00022246,2]
[315965220,1709305871559,-1114.24,0.00022246,2]
[315965221,1709305871569,-500.0,0.00022246,2]
[315965222,1709305871579,-721.29,0.00022246,2]
[315965223,1709305871588,-1667.9,0.00022246,2]
[315965224,1709305871599,-500.0,0.00022246,2]
[315965225,1709305871613,-1455.8,0.00022246,2]
[315965226,1709305871622,-500.0,0.00022246,2]
[315965227,1709305871632,-500.0,0.00022246,2]
[315965228,1709305871642,-500.0,0.00022246,2]
[315965229,1709305871651,-500.0,0.00022246,2]
[315965230,1709305871661,-500.0,0.00022246,2]
[315965231,1709305871670,-500.0,0.00022246,2]
[315965232,1709305871682,-500.0,0.00022246,2]
[315965233,1709305871692,-631.77,0.00022246,2]
[315965234,1709305871701,-5562.59,0.00022246,2]
[315965235,1709305871710,-500.0,0.00022246,2]
[315965236,1709305871720,-500.0,0.00022246,2]
[315965237,1709305871729,-5893.85,0.00022246,2]
[315965238,1709305871739,-500.0,0.00022246,2]
[315965239,1709305871749,-2262.48,0.00022246,2]
[315965240,1709305871761,-500.0,0.00022246,2]
[315965241,1709305871770,-500.0,0.00022246,2]
[315965242,1709305871779,-506.63,0.00022246,2]
[315965243,1709305871788,-500.0,0.00022246,2]
[315965244,1709305871797,-500.0,0.00022246,2]
[315965245,1709305871806,-500.0,0.00022246,2]
[315965246,1709305871815,-500.0,0.00022246,2]
[315965247,1709305871824,-634.29,0.00022246,2]
[315965248,1709305871833,-724.63,0.00022246,2]
[315965249,1709305871843,-7099.15,0.00022246,2]
[315965250,1709305871852,-1628.31,0.00022246,2]
[315965251,1709305871861,-557.5,0.00022246,2]
[315965252,1709305871870,-500.0,0.00022246,2]
[315965253,1709305871879,-500.0,0.00022246,2]
[315965254,1709305871889,-500.0,0.00022246,2]
[315965255,1709305871898,-500.0,0.00022246,2]
[315965256,1709305871907,-900.57,0.00022246,2]
[315965257,1709305871917,-500.0,0.00022246,2]
[315965258,1709305871926,-1308.47,0.00022246,2]
[315965259,1709305871936,-510.08,0.00022246,2]
[315965260,1709305871947,-5514.48,0.00022246,2]
[315965261,1709305871957,-500.0,0.00022246,2]
[315965262,1709305871966,-500.0,0.00022246,2]
[315965263,1709305871976,-500.0,0.00022246,2]
[315965264,1709305871985,-920.03,0.00022246,2]
[315965265,1709305871994,-1631.28,0.00022246,2]
[315965266,1709305872007,-1607.91,0.00022246,2]
[315965267,1709305872016,-1979.13,0.00022246,2]
[315965268,1709305872026,-500.0,0.00022246,2]
[315965269,1709305872036,-500.0,0.00022246,2]
[315965270,1709305872046,-500.0,0.00022246,2]
[315965271,1709305872055,-691.36,0.00022246,2]
[315965272,1709305872065,-500.0,0.00022246,2]
[315965273,1709305872075,-500.0,0.00022246,2]
[315965274,1709305872086,-500.0,0.00022246,2]
[315965275,1709305872096,-567.34,0.00022246,2]
[315965276,1709305872105,-500.0,0.00022246,2]
[315965277,1709305872115,-500.0,0.00022246,2]
[315965278,1709305872124,-2398.02,0.00022246,2]
[315965279,1709305872134,-199.69,0.00022264,2]
[315965280,1709305872143,-204.92,0.00022264,2]
[315965281,1709305872152,-250.0,0.00022274,2]
[315965282,1709305872161,-920.07,0.00022283,2]
[315965283,1709305872171,-1078.02,0.00022292,2]
[315965284,1709305872180,-31512.78877762,0.000223,4]
[315965285,1709305872190,-200.0,0.00022322,2]
[315965286,1709305872199,-800.0,0.00022322,2]
[315965287,1709305872208,-200.0,0.00022322,2]
[315965288,1709305872219,-500.0,0.00022322,2]
[315965289,1709305872229,-200.0,0.00022322,2]
[315965290,1709305872237,-500.0,0.00022356,2]
[315965291,1709305872246,-500.0,0.00022356,2]
[315965292,1709305872259,-500.0,0.00022356,2]
[315965293,1709305872268,-500.0,0.00022356,2]
[315965294,1709305872277,-500.0,0.00022356,2]
[315965295,1709305872286,-500.0,0.00022356,2]
[315965296,1709305872296,-500.0,0.00022356,2]
[315965297,1709305872305,-500.0,0.00022356,2]
[315965298,1709305872314,-500.0,0.00022356,2]
[315965299,1709305872324,-500.0,0.00022356,2]
[315965300,1709305872333,-500.0,0.00022356,2]
[315965301,1709305872342,-500.0,0.00022356,2]
[315965302,1709305872352,-500.0,0.00022356,2]
[315965303,1709305872362,-500.0,0.00022356,2]
[315965304,1709305872373,-500.0,0.00022356,2]
[315965305,1709305872382,-500.0,0.00022356,2]
[315965306,1709305872391,-500.0,0.00022356,2]
[315965307,1709305872400,-500.0,0.00022356,2]
[315965308,1709305872409,-500.0,0.00022356,2]
[315965309,1709305872420,-500.0,0.00022356,2]
[315965310,1709305872429,-500.0,0.00022356,2]
[315965311,1709305872439,-500.0,0.00022356,2]
[315965312,1709305872448,-500.0,0.00022356,2]
[315965313,1709305872459,-500.0,0.00022356,2]
[315965314,1709305872476,-500.0,0.00022356,2]
[315965315,1709305872490,-500.0,0.00022356,2]
[315965316,1709305872499,-500.0,0.00022356,2]
[315965317,1709305872512,-500.0,0.00022356,2]
[315965318,1709305872521,-547.5,0.00022356,2]
[315965319,1709305872531,-906.74,0.00022356,2]
[315965320,1709305872540,-500.0,0.00022356,2]
[315965321,1709305872550,-500.0,0.00022356,2]
[315965322,1709305872560,-500.0,0.00022356,2]
[315965323,1709305872569,-500.0,0.00022356,2]
[315965324,1709305872579,-500.0,0.00022356,2]
[315965325,1709305872589,-500.0,0.00022356,2]
[315965326,1709305872598,-500.0,0.00022356,2]
[315965327,1709305872609,-500.0,0.00022356,2]
[315965328,1709305872618,-500.0,0.00022356,2]
[315965329,1709305872627,-199.46901194,0.00022356,2]
[315965330,1709305872637,-500.0,0.00022356,2]
[315965331,1709305872646,-560.24,0.00022356,2]
[315965332,1709305872656,-500.0,0.00022356,2]
[315965333,1709305872666,-158.44,0.00022356,2]
[315965334,1709305872676,-500.0,0.00022356,2]
[315965335,1709305872685,-500.0,0.00022356,2]
[315965336,1709305872695,-500.0,0.00022356,2]
[315965337,1709305872704,-500.0,0.00022356,2]
[315965338,1709305872714,-151.0,0.00022356,7]
[315965339,1709305872723,-500.0,0.00022356,2]
[315965340,1709305872732,-500.0,0.00022356,2]
[315965341,1709305872741,-500.0,0.00022356,2]
[315965342,1709305872753,-500.0,0.00022356,2]
[315965343,1709305872764,-500.0,0.00022356,2]
[315965344,1709305872773,-500.0,0.00022356,2]
[315965345,1709305872783,-500.0,0.00022356,2]
[315965346,1709305872792,-500.0,0.00022356,2]
[315965347,1709305872802,-572.62196128,0.00022356,2]
[315965348,1709305872812,-181.76,0.00022356,2]
[315965349,1709305872822,-500.0,0.00022356,2]
[315965350,1709305872831,-500.0,0.00022356,2]
[315965351,1709305872840,-500.0,0.00022356,2]
[315965352,1709305872849,-500.0,0.00022356,2]
[315965353,1709305872859,-578.25,0.00022356,2]
[315965354,1709305872868,-500.0,0.00022356,2]
[315965355,1709305872877,-500.0,0.00022356,2]
[315965356,1709305872886,-500.0,0.00022356,2]
[315965357,1709305872896,-645.02,0.00022356,2]
[315965358,1709305872905,-500.0,0.00022356,2]
[315965359,1709305872914,-378.24702163,0.00022356,2]
[315965360,1709305872924,-500.0,0.00022356,2]
[315965361,1709305872933,-509.90656728,0.00022356,2]
[315965362,1709305872943,-751.68,0.00022356,2]
[315965363,1709305872953,-500.0,0.00022356,2]
[315965364,1709305872963,-500.0,0.00022356,2]
[315965365,1709305872973,-264.2861735,0.00022356,2]
[315965366,1709305872983,-500.0,0.00022356,2]
[315965367,1709305872992,-500.0,0.00022356,2]
[315965368,1709305873004,-500.0,0.00022356,2]
[315965369,1709305873013,-500.0,0.00022356,2]
[315965370,1709305873023,-500.0,0.00022356,2]
[315965371,1709305873033,-500.0,0.00022356,2]
[315965372,1709305873042,-500.0,0.00022356,2]
[315965373,1709305873051,-500.0,0.00022356,2]
[315965374,1709305873061,-971.26,0.00022356,2]
[315965375,1709305873071,-500.0,0.00022356,2]
[315965376,1709305873081,-919.98,0.00022356,2]
[315965377,1709305873090,-500.0,0.00022356,2]
[315965378,1709305873099,-573.56,0.00022356,2]
[315965379,1709305873109,-500.0,0.00022356,2]
[315965380,1709305873118,-500.0,0.00022356,2]
[315965381,1709305873127,-500.0,0.00022356,2]
[315965382,1709305873137,-500.0,0.00022356,2]
[315965383,1709305873146,-500.0,0.00022356,2]
[315965384,1709305873156,-500.0,0.00022356,2]
[315965385,1709305873165,-151.33473542,0.00022356,2]
[315965386,1709305873175,-737.77,0.00022356,2]
[315965387,1709305873187,-500.0,0.00022356,2]
[315965388,1709305873197,-500.0,0.00022356,2]
[315965389,1709305873207,-358.40846164,0.00022356,2]
[315965390,1709305873217,-500.0,0.00022356,2]
[315965391,1709305873226,-500.0,0.00022356,2]
[315965392,1709305873236,-500.0,0.00022356,2]
[315965393,1709305873245,-500.0,0.00022356,2]
[315965394,1709305873257,-782.71,0.00022356,2]
[315965395,1709305873267,-500.0,0.00022356,2]
[315965396,1709305873276,-500.0,0.00022356,2]
[315965397,1709305873286,-500.0,0.00022356,2]
[315965398,1709305873295,-742.5,0.00022356,2]
[315965399,1709305873305,-500.0,0.00022356,2]
[315965400,1709305873314,-500.0,0.00022356,2]
[315965401,1709305873324,-500.0,0.00022356,2]
[315965402,1709305873333,-500.0,0.00022356,2]
[315965403,1709305873344,-516.61,0.00022356,2]
[315965404,1709305873353,-351.58314734,0.00022356,2]
[315965405,1709305873363,-500.0,0.00022356,2]
[315965406,1709305873374,-500.0,0.00022356,2]
[315965407,1709305873385,-500.0,0.00022356,2]
[315965408,1709305873394,-201.06324153,0.00022356,2]
[315965409,1709305873404,-500.0,0.00022356,2]
[315965410,1709305873415,-500.0,0.00022356,2]
[315965411,1709305873424,-500.0,0.00022356,2]
[315965412,1709305873434,-500.0,0.00022356,2]
[315965413,1709305873445,-500.0,0.00022356,2]
[315965414,1709305873455,-500.0,0.00022356,2]
[315965415,1709305873465,-500.0,0.00022356,2]
[315965416,1709305873475,-707.6,0.00022356,2]
[315965417,1709305873485,-780.2,0.00022356,2]
[315965418,1709305873494,-500.0,0.00022356,2]
[315965419,1709305873506,-500.0,0.00022356,2]
[315965420,1709305873515,-500.0,0.00022356,2]
[315965421,1709305873525,-500.0,0.00022356,2]
[315965422,1709305873534,-500.0,0.00022356,2]
[315965423,1709305873544,-500.0,0.00022356,2]
[315965424,1709305873554,-500.0,0.00022356,2]
[315965425,1709305873564,-500.0,0.00022356,2]
[315965426,1709305873575,-500.0,0.00022356,2]
[315965427,1709305873584,-504.09,0.00022356,2]
[315965428,1709305873594,-500.0,0.00022356,2]
[315965429,1709305873604,-500.0,0.00022356,2]
[315965430,1709305873613,-500.0,0.00022356,2]
[315965431,1709305873623,-600.18,0.00022356,2]
[315965432,1709305873632,-500.0,0.00022356,2]
[315965433,1709305873642,-500.0,0.00022356,2]
[315965434,1709305873651,-500.0,0.00022356,2]
[315965435,1709305873661,-546.1,0.00022356,2]
[315965436,1709305873670,-532.41,0.00022356,2]
[315965437,1709305873680,-734.54,0.00022356,2]
[315965438,1709305873689,-529.48,0.00022356,2]
[315965439,1709305873699,-500.0,0.00022356,2]
[315965440,1709305873708,-500.0,0.00022356,2]
[315965441,1709305873718,-500.0,0.00022356,2]
[315965442,1709305873731,-639.25,0.00022356,2]
[315965443,1709305873741,-500.0,0.00022356,2]
[315965444,1709305873751,-500.0,0.00022356,2]
[315965445,1709305873762,-584.03,0.00022356,2]
[315965446,1709305873772,-500.0,0.00022356,2]